bitfinex-derivatives/quotes_SOLF0:USTF0_20241217
["timestamp","ask_amount","ask_price","bid_price","bid_amount"]
[1734450058007,2.2737,219.89,219.84,2.2742]
[1734450058305,3.1195,219.92,219.81,3.24]
[1734450059312,0.42778,219.93,219.83,13.11408996]
[1734450059503,0.42778,219.93,219.86,13.11408996]
[1734450059708,0.42778,219.93,219.89,13.11408996]
[1734450059913,0.42778,219.93,219.9,3.24]
[1734450060212,0.42778,219.93,219.92,13.11408996]
[1734450060410,0.42778,219.93,219.92,15.38748996]
[1734450061003,13.11408996,220.05,219.92,13.11408996]
[1734450061205,13.11408996,220.05,219.9,3.24]
[1734450061206,5.49537944,220.05,219.95,13.11408996]
[1734450061406,3.0177,220.08,219.96,3.24]
[1734450061706,2.2722,220.04,219.98,2.2728]
[1734450061903,2.2722,220.04,219.96,3.24]
[1734450061904,13.11408996,220.04,219.96,3.24]
[1734450062108,20.96363025,220.07,219.96,3.24]
[1734450062511,5.56250941,220.06,219.96,3.24]
[1734450062910,2.2726,220.0,219.96,3.24]
[1734450063118,5.56250941,220.06,219.96,3.24]
[1734450063508,6.2577,220.08,219.96,3.24]
[1734450063713,2.2721,220.05,219.97,2.2728]
[1734450064018,2.2721,220.05,219.96,3.24]
[1734450064315,2.2721,220.05,219.98,2.2728]
[1734450064817,2.2722,220.04,219.98,2.2728]
[1734450065316,2.2723,220.03,219.96,5.5129]
[1734450065615,2.2723,220.03,219.96,3.24]
[1734450065815,5.44879024,220.07,219.96,3.24]
[1734450066010,7.72069024,220.07,220.0,2.2726]
[1734450066216,5.44879024,220.07,220.0,2.2726]
[1734450066517,1.4695,220.1,219.99,20.96363025]
[1734450067017,1.4695,220.1,219.97,20.96363025]
[1734450067415,5.49670379,220.13,219.96,3.24]
[1734450067713,5.49670379,220.13,220.01,20.96363025]
[1734450067915,1.4744,220.15,220.02,3.24]
[1734450068117,2.2714,220.12,220.05,2.272]
[1734450068317,6.94164254,220.15,220.05,2.272]
[1734450068818,6.94164254,220.15,220.02,3.24]
[1734450069612,2.2712,220.14,220.07,2.2718]
[1734450069813,1.4744,220.15,220.02,24.17863907]
[1734450071015,3.24,220.23,220.02,24.17863907]
[1734450071016,20.93863907,220.24,220.06,20.93863907]
[1734450071220,1.5542,220.23,220.06,20.93863907]
[1734450071418,5.37078957,220.22,220.06,20.93863907]
[1734450071818,8.61078957,220.22,220.06,3.24]
[1734450072017,2.2718,220.08,220.06,3.24]
[1734450072215,24.17863907,220.16,219.99,1.555]
[1734450072422,3.1427,220.15,219.99,3.24]
[1734450072618,3.1427,220.15,219.94,20.93863907]
[1734450072812,20.93863907,220.12,219.95,3.24]
[1734450073021,20.93863907,220.12,219.91,1.6058]
[1734450073216,20.93863907,220.08,219.91,3.24]
[1734450073417,3.24,220.07,219.9,3.24]
[1734450073920,20.93863907,220.04,219.9,3.24]
[1734450074125,3.1427,220.03,219.9,3.24]
[1734450074321,2.2734,219.92,219.86,2.2739]
[1734450074520,2.2734,219.92,219.87,3.24]
[1734450074718,3.24,220.01,219.87,3.24]
[1734450074921,22.53233907,220.0,219.82,1.6058]
[1734450075126,22.53233907,220.0,219.83,3.24]
[1734450075723,2.2736,219.91,219.83,3.24]
[1734450075930,22.53233907,220.0,219.83,3.24]
[1734450076221,2.2737,219.89,219.83,3.24]
[1734450076425,2.2737,219.89,219.82,2.2743]
[1734450076826,3.24,219.95,219.8,5.5146]
[1734450076827,2.2739,219.87,219.8,5.5146]
[1734450077025,3.24,219.95,219.77,72.93863907]
[1734450077220,3.24,219.95,219.78,3.24]
[1734450077427,2.2742,219.85,219.78,5.5148]
[1734450077622,3.24,219.95,219.78,3.24]
[1734450077822,2.2739,219.87,219.78,3.24]
[1734450078018,3.24,219.95,219.78,3.24]
[1734450078225,5.36240913,219.93,219.78,3.24]
[1734450078528,5.36240913,219.93,219.77,20.93863907]
[1734450078831,3.0045,219.92,219.78,3.24]
[1734450079231,20.93863907,219.89,219.73,3.24]
[1734450079527,4.797,219.88,219.69,22.54833907]
[1734450079828,4.797,219.88,219.7,3.24]
[1734450080126,2.2743,219.84,219.77,2.2749]
[1734450080329,4.797,219.88,219.77,2.2749]
[1734450080529,4.797,219.88,219.76,3.24]
[1734450080725,2.2746,219.81,219.73,23.21393907]
[1734450080921,4.797,219.88,219.74,3.24]
[1734450081426,2.2745,219.82,219.74,3.24]
[1734450081730,4.797,219.88,219.74,3.24]
[1734450082829,20.93863907,219.85,219.65,20.93863907]
[1734450083032,20.93863907,219.81,219.66,3.24]
[1734450083326,20.93863907,219.77,219.61,20.93863907]
[1734450083531,1.5745,219.76,219.61,3.24]
[1734450083721,20.93863907,219.73,219.61,3.24]
[1734450084225,2.2755,219.72,219.62,2.2764]
[1734450084427,22.51313907,219.76,219.6,3.24]
[1734450085125,2.2758,219.69,219.6,3.24]
[1734450085524,22.51313907,219.76,219.6,3.24]
[1734450085725,22.51313907,219.76,219.64,2.2762]
[1734450085726,1.5745,219.76,219.64,2.2762]
[1734450085929,1.5745,219.76,219.61,20.93863907]
[1734450086129,1.5745,219.76,219.66,2.276]
[1734450086130,2.2754,219.73,219.66,2.276]
[1734450086325,1.5745,219.76,219.66,3.24]
[1734450086526,1.5131,219.8,219.66,3.24]
[1734450086829,2.2745,219.82,219.69,20.93863907]
[1734450087033,2.2745,219.82,219.7,1.4658]
[1734450087235,2.2743,219.84,219.77,2.2749]
[1734450087428,4.5883,219.88,219.77,3.24]
[1734450088231,2.2741,219.85,219.77,5.5149]
[1734450088435,240.52096172,220.05,219.77,5.5149]
[1734450088436,20.93863907,219.96,219.77,3.24]
[1734450088635,4.6097,219.97,219.8,20.93863907]
[1734450088934,4.6097,219.97,219.81,1.4658]
[1734450089234,5.34644808,219.94,219.81,1.4658]
[1734450089435,2.2734,219.92,219.81,1.4658]
[1734450089832,5.34644808,219.94,219.81,1.4658]
[1734450090628,2.2733,219.93,219.81,1.4658]
[1734450091132,2.2734,219.92,219.85,2.2741]
[1734450091337,5.34644808,219.94,219.86,3.24]
[1734450091933,2.2735,219.91,219.86,3.24]
[1734450092142,5.34644808,219.94,219.86,3.24]
[1734450092438,5.34644808,219.94,219.79,3.24]
[1734450092439,2.2741,219.85,219.79,3.24]
[1734450092644,20.93863907,219.92,219.79,3.24]
[1734450092851,8.58644808,219.94,219.79,3.24]
[1734450093032,2.2735,219.91,219.84,2.2741]
[1734450093342,5.34644808,219.94,219.85,3.24]
[1734450093537,5.34644808,219.94,219.86,3.24]
[1734450093744,5.34644808,219.94,219.86,5.514]
[1734450093745,2.2734,219.92,219.86,5.514]
[1734450094040,5.34644808,219.94,219.86,3.24]
[1734450095742,2.2736,219.9,219.86,3.24]
[1734450097339,4.6097,219.97,219.86,3.24]
[1734450098040,4.6097,219.97,219.86,5.514]
[1734450098341,5.47767742,219.95,219.86,3.24]
[1734450098545,5.47767742,219.95,219.83,2.2743]
[1734450098546,2.2736,219.9,219.83,2.2743]
[1734450098742,5.47767742,219.95,219.83,2.2743]
[1734450098942,5.47767742,219.95,219.77,26.49196997]
[1734450099143,2.2741,219.86,219.81,2.2744]
[1734450099344,5.47767742,219.95,219.78,3.28]
[1734450099539,5.47767742,219.95,219.8,2.2746]
[1734450100043,2.2737,219.89,219.83,2.2743]
[1734450100249,5.47767742,219.95,219.83,2.2743]
[1734450100451,5.47767742,219.95,219.78,3.28]
[1734450101048,2.2736,219.9,219.78,3.28]
[1734450102143,5.47767742,219.95,219.87,2.2739]
[1734450102444,5.47767742,219.95,219.79,3.28]
[1734450102445,2.2736,219.91,219.79,3.28]
[1734450102644,5.47767742,219.95,219.8,2.2746]
[1734450102851,5.47767742,219.95,219.79,3.28]
[1734450103046,2.2736,219.91,219.79,3.28]
[1734450103246,5.47767742,219.95,219.82,2.2744]
[1734450103448,0.67161496,219.94,219.82,2.2744]
[1734450103649,0.67161496,219.94,219.79,3.28]
[1734450103949,20.93863907,219.92,219.79,3.28]
[1734450104445,24.21863907,219.92,219.81,2.2744]
[1734450104843,24.21863907,219.92,219.79,3.28]
[1734450104844,3.28,219.92,219.79,3.28]
[1734450105046,2.2739,219.88,219.83,2.2743]
[1734450105345,8.75767742,219.95,219.83,2.2743]
[1734450105645,2.2741,219.86,219.81,2.2744]
[1734450108753,8.75767742,219.95,219.81,2.2744]
[1734450108754,2.2741,219.85,219.81,2.2744]
[1734450109253,2.2741,219.85,219.81,2.2745]
[1734450109455,20.93863907,219.92,219.79,3.28]
[1734450109750,0.67156198,219.91,219.79,3.28]
[1734450110155,2.2744,219.83,219.79,3.28]
[1734450110356,20.93863907,219.92,219.73,20.93863907]
[1734450110551,20.93863907,219.88,219.74,3.28]
[1734450110755,7.9456,219.87,219.74,3.28]
[1734450111251,7.9456,219.87,219.71,7.13078649]
[1734450111452,7.9456,219.87,219.62,1.2775]
[1734450111453,20.93863907,219.84,219.62,1.2775]
[1734450111756,20.93863907,219.84,219.68,3.28]
[1734450111957,2.2752,219.75,219.68,3.28]
[1734450112153,20.93863907,219.84,219.68,3.28]
[1734450112350,2.2748,219.79,219.74,2.2752]
[1734450112656,2.2748,219.79,219.68,3.28]
[1734450112956,2.2748,219.79,219.73,2.2753]
[1734450113158,2.2749,219.78,219.73,2.2753]
[1734450113653,2.275,219.77,219.68,3.28]
[1734450113856,5.35228536,219.81,219.68,3.28]
[1734450114847,2.275,219.77,219.68,3.28]
[1734450115047,5.35228536,219.81,219.68,3.28]
[1734450115348,5.35228536,219.81,219.67,26.41930935]
[1734450115349,2.2749,219.78,219.69,3.28]
[1734450115754,5.35228536,219.81,219.72,2.2754]
[1734450115955,2.275,219.77,219.72,2.2754]
[1734450116558,5.35228536,219.81,219.71,2.2755]
[1734450116758,5.35228536,219.81,219.69,3.28]
[1734450117153,2.2753,219.74,219.68,5.5558]
[1734450117455,5.35228536,219.81,219.68,5.5558]
[1734450117660,5.35228536,219.81,219.68,2.2758]
[1734450117855,2.2749,219.78,219.68,2.2758]
[1734450118159,5.35228536,219.81,219.69,2.2758]
[1734450119161,2.2754,219.73,219.69,2.2758]
[1734450119358,3.28,219.79,219.63,23.94083907]
[1734450119660,2.2757,219.7,219.64,3.28]
[1734450119859,3.28,219.79,219.64,3.28]
[1734450120057,3.28,219.79,219.66,2.276]
[1734450120457,3.28,219.79,219.64,2.2763]
[1734450120656,3.28,219.79,219.64,5.5563]
[1734450120854,2.2757,219.7,219.63,20.93863907]
[1734450121056,2.2757,219.7,219.65,2.2761]
[1734450121465,3.28,219.79,219.65,2.2761]
[1734450122161,3.28,219.79,219.59,20.93863907]
[1734450122457,20.93863907,219.71,219.56,20.93863907]
[1734450122660,20.93863907,219.71,219.57,3.28]
[1734450122661,4.6019,219.7,219.57,3.28]
[1734450122861,4.6019,219.7,219.52,20.93863907]
[1734450123164,20.93863907,219.67,219.53,3.28]
[1734450123657,3.28,219.66,219.53,3.28]
[1734450123963,2.2772,219.55,219.5,5.5577]
[1734450124161,20.93863907,219.63,219.44,20.93863907]
[1734450124563,20.93863907,219.63,219.41,4.3446]
[1734450124564,20.93863907,219.59,219.45,3.28]
[1734450124761,7.792,219.58,219.42,24.21863907]
[1734450125457,2.2775,219.53,219.47,2.278]
[1734450125654,2.2775,219.53,219.42,29.71107062]
[1734450125655,7.792,219.58,219.42,29.71107062]
[1734450126161,7.792,219.58,219.42,5.49243155]
[1734450126554,2.2782,219.46,219.42,5.49243155]
[1734450126755,20.93863907,219.51,219.35,23.95453907]
[1734450126964,24.19863907,219.51,219.36,3.26]
[1734450127165,2.2785,219.44,219.37,2.2791]
[1734450127361,24.19863907,219.51,219.36,3.26]
[1734450127765,2.2781,219.47,219.37,2.2791]
[1734450127964,24.19863907,219.51,219.37,2.2791]
[1734450128269,5.4311797,219.53,219.35,32.66704754]
[1734450128463,4.512,219.58,219.43,20.93863907]
[1734450128664,4.512,219.58,219.44,3.26]
[1734450129270,4.512,219.58,219.47,20.93863907]
[1734450129564,3.0063,219.58,219.47,20.93863907]
[1734450129765,2.2775,219.53,219.47,20.93863907]
[1734450129966,1.5059,219.58,219.47,20.93863907]
[1734450130464,2.2771,219.57,219.5,2.2777]
[1734450130673,1.5059,219.58,219.47,20.93863907]
[1734450130874,1.5059,219.58,219.43,20.93863907]
[1734450131170,1.5059,219.58,219.44,3.26]
[1734450132469,1.5274,219.62,219.47,20.93863907]
[1734450132670,1.5274,219.62,219.51,20.93863907]
[1734450132863,3.26,219.7,219.52,3.26]
[1734450133266,5.48741793,219.65,219.52,3.26]
[1734450133965,5.48741793,219.65,219.53,2.2774]
[1734450134164,5.48741793,219.65,219.52,3.26]
[1734450134365,1.5587,219.69,219.52,3.26]
[1734450134565,5.3358862,219.68,219.52,3.26]
[1734450134863,20.93863907,219.67,219.52,3.26]
[1734450135069,20.93863907,219.67,219.48,3.0714]
[1734450135070,20.93863907,219.63,219.48,3.0714]
[1734450135377,20.93863907,219.63,219.49,3.26]
[1734450135568,2.2769,219.59,219.5,2.2776]
[1734450135873,3.0491,219.62,219.5,2.2776]
[1734450136070,2.2769,219.59,219.5,2.2776]
[1734450136273,3.0491,219.62,219.49,8.77007016]
[1734450136769,2.2768,219.59,219.49,8.77007016]
[1734450136969,2.2768,219.59,219.52,2.2775]
[1734450137577,3.0491,219.62,219.5,2.2777]
[1734450137867,3.26,219.61,219.46,3.26]
[1734450138171,20.93863907,219.58,219.44,3.26]
[1734450138373,1.6049,219.57,219.44,3.26]
[1734450138769,2.278,219.48,219.44,3.26]
[1734450139670,2.278,219.48,219.42,2.2785]
[1734450140374,2.2781,219.47,219.4,5.5387]
[1734450140568,20.93863907,219.54,219.4,5.5387]
[1734450140772,20.93863907,219.54,219.35,4.3676]
[1734450140973,2.2788,219.4,219.33,33.1911548]
[1734450141280,3.26,219.49,219.33,30.84996444]
[1734450141474,3.26,219.49,219.33,5.5395]
[1734450141475,20.93863907,219.46,219.33,5.5395]
[1734450141672,20.93863907,219.46,219.3,20.93863907]
[1734450141875,20.93863907,219.46,219.31,3.26]
[1734450142069,1.5497,219.45,219.32,2.2796]
[1734450142269,1.5497,219.45,219.28,3.0364]
[1734450142573,1.5497,219.45,219.29,3.26]
[1734450142973,1.5497,219.45,219.3,3.26]
[1734450143474,2.2787,219.41,219.32,2.2795]
[1734450143668,2.2787,219.41,219.3,24.19863907]
[1734450143865,1.5497,219.45,219.3,24.19863907]
[1734450145276,2.279,219.39,219.3,24.19863907]
[1734450146066,1.5497,219.45,219.3,24.19863907]
[1734450146273,1.5497,219.45,219.31,5.5397]
[1734450146576,1.5497,219.45,219.31,3.26]
[1734450147072,2.2789,219.39,219.31,3.26]
[1734450147375,1.5497,219.45,219.31,3.26]
[1734450147569,2.2789,219.39,219.32,2.2795]
[1734450147871,2.2789,219.39,219.31,3.26]
[1734450148079,2.279,219.38,219.32,2.2796]
[1734450148975,1.5497,219.45,219.31,3.26]
[1734450149178,1.5497,219.45,219.35,2.2793]
[1734450149369,1.5497,219.45,219.31,3.26]
[1734450149571,2.2789,219.39,219.33,2.2794]
[1734450150475,2.2791,219.38,219.32,2.2796]
[1734450150674,20.93863907,219.46,219.32,5.5596]
[1734450150977,20.93863907,219.46,219.32,3.28]
[1734450150978,2.2792,219.37,219.32,3.28]
[1734450151172,20.93863907,219.42,219.3,3.28]
[1734450151676,2.2793,219.35,219.3,3.28]
[1734450152274,2.2793,219.35,219.28,8.60512154]
[1734450152576,20.93863907,219.42,219.22,20.93863907]
[1734450152773,20.93863907,219.42,219.25,3.28]
[1734450153079,20.93863907,219.38,219.22,20.93863907]
[1734450153280,20.93863907,219.38,219.24,3.28]
[1734450153469,7.8894,219.37,219.22,20.93863907]
[1734450153675,2.2797,219.32,219.23,8.67185196]
[1734450154270,2.2797,219.32,219.26,2.2802]
[1734450154879,7.8894,219.37,219.26,2.2802]
[1734450155075,2.2797,219.31,219.26,2.2802]
[1734450155574,2.2798,219.31,219.23,8.67185196]
[1734450156076,2.2798,219.31,219.25,2.2802]
[1734450156279,7.8894,219.37,219.23,3.28]
[1734450156680,2.28,219.29,219.21,3.26]
[1734450156982,5.58991452,219.34,219.21,3.26]
[1734450156983,26.52855359,219.34,219.21,3.26]
[1734450157281,2.2801,219.28,219.21,3.26]
[1734450157476,26.52855359,219.34,219.21,3.26]
[1734450157671,26.52855359,219.34,219.21,5.5407]
[1734450157877,2.2801,219.27,219.21,5.5407]
[1734450158378,20.93863907,219.3,219.19,2.2809]
[1734450159175,2.2803,219.26,219.19,2.2809]
[1734450160086,29.78855359,219.34,219.17,24.19863907]
[1734450160272,5.58991452,219.34,219.17,24.19863907]
[1734450160472,4.6094,219.37,219.21,20.93863907]
[1734450160673,6.8886,219.37,219.3,2.2797]
[1734450160977,5.34807098,219.35,219.26,3.26]
[1734450162176,7.62737098,219.35,219.29,2.2798]
[1734450163275,2.2796,219.32,219.26,5.5402]
[1734450163484,20.93863907,219.34,219.22,3.26]
[1734450163882,2.2797,219.31,219.24,2.2804]
[1734450164078,20.93863907,219.34,219.22,3.26]
[1734450164479,2.2796,219.32,219.22,3.26]
[1734450165380,8.60807098,219.35,219.23,3.26]
[1734450165579,8.60807098,219.35,219.21,20.93863907]
[1734450165580,4.6094,219.37,219.24,3.26]
[1734450165782,10.17245012,219.37,219.24,3.26]
[1734450166485,10.17245012,219.37,219.27,2.28]
[1734450166783,10.17245012,219.37,219.24,3.26]
[1734450167683,10.17245012,219.37,219.25,2.2803]
[1734450167887,10.17245012,219.37,219.24,3.26]
[1734450168082,2.2797,219.31,219.25,2.2803]
[1734450168487,20.93863907,219.34,219.22,3.26]
[1734450168878,2.2802,219.27,219.22,2.2806]
[1734450169083,2.2802,219.27,219.18,3.26]
[1734450169882,2.2802,219.26,219.16,5.55669339]
[1734450170085,20.93863907,219.3,219.14,52.14]
[1734450170286,20.93863907,219.3,219.16,3.26]
[1734450170483,20.93863907,219.3,219.18,2.281]
[1734450170682,20.93863907,219.3,219.15,3.26]
[1734450171485,2.2806,219.23,219.17,2.2811]
[1734450171787,3.26,219.28,219.11,3.26]
[1734450171986,2.2806,219.23,219.16,2.2812]
[1734450172484,2.2807,219.22,219.16,2.2812]
[1734450172689,4.8003,219.27,219.11,3.26]
[1734450173082,3.26,219.26,219.11,3.26]
[1734450173388,3.26,219.26,219.12,20.93863907]
[1734450173586,3.26,219.26,219.11,3.26]
[1734450173789,5.57519446,219.24,219.11,3.26]
[1734450173987,5.57519446,219.24,219.09,5.45086308]
[1734450174182,5.57519446,219.24,219.1,3.26]
[1734450174992,2.2807,219.22,219.17,2.2811]
[1734450175190,5.57519446,219.24,219.1,3.26]
[1734450175583,2.2806,219.23,219.17,2.2811]
[1734450176988,4.8003,219.27,219.12,20.93863907]
[1734450177392,2.2803,219.26,219.12,20.93863907]
[1734450177689,4.8003,219.27,219.12,20.93863907]
[1734450177891,5.43174038,219.25,219.12,20.93863907]
[1734450178593,2.2805,219.24,219.12,20.93863907]
[1734450180086,5.43174038,219.25,219.12,20.93863907]
[1734450180290,2.2806,219.23,219.12,20.93863907]
[1734450180987,2.2806,219.23,219.17,2.2811]
[1734450181193,2.2806,219.23,219.12,20.93863907]
[1734450181792,2.2809,219.2,219.1,3.26]
[1734450182693,5.43174038,219.25,219.08,20.93863907]
[1734450182891,20.93863907,219.23,219.09,3.26]
[1734450183094,3.26,219.22,219.08,20.93863907]
[1734450183394,2.2812,219.18,219.12,2.2816]
[1734450183892,2.2809,219.2,219.14,2.2814]
[1734450184095,2.2809,219.2,219.08,24.19863907]
[1734450184395,2.2809,219.2,219.11,2.2817]
[1734450184695,5.43174038,219.25,219.08,24.19863907]
[1734450185191,2.2806,219.23,219.12,20.93863907]
[1734450185795,2.2807,219.22,219.12,20.93863907]
[1734450186088,2.2807,219.22,219.16,2.2812]
[1734450186287,2.2807,219.22,219.16,5.5412]
[1734450186493,2.281,219.19,219.08,20.93863907]
[1734450186689,2.281,219.19,219.12,2.2816]
[1734450187095,2.281,219.19,219.09,3.26]
[1734450187296,5.43174038,219.25,219.09,3.26]
[1734450187997,2.2806,219.23,219.17,2.2811]
[1734450188299,5.43174038,219.25,219.17,2.2811]
[1734450188692,5.43174038,219.25,219.15,3.26]
[1734450190195,13.19872896,219.23,219.15,3.26]
[1734450190590,13.19872896,219.23,219.09,13.19872896]
[1734450190792,13.19872896,219.23,219.1,3.26]
[1734450190997,2.2812,219.17,219.12,2.2816]
[1734450191207,13.19872896,219.23,219.1,3.26]
[1734450192098,3.26,219.24,219.12,13.19872896]
[1734450192400,2.2808,219.21,219.16,2.2812]
[1734450192595,5.43174038,219.25,219.16,2.2812]
[1734450192799,13.19872896,219.23,219.1,3.26]
[1734450192994,2.281,219.19,219.15,2.2814]
[1734450193201,13.19872896,219.23,219.15,2.2814]
[1734450193903,2.281,219.19,219.14,2.2815]
[1734450194203,13.19872896,219.23,219.14,2.2815]
[1734450194799,13.19872896,219.19,219.05,13.19872896]
[1734450194999,13.19872896,219.19,219.02,1.5447]
[1734450195000,13.19872896,219.16,219.03,3.26]
[1734450195200,1.5063,219.15,219.04,2.2824]
[1734450195400,2.282,219.1,219.02,3.26]
[1734450195700,13.19872896,219.13,219.05,2.2824]
[1734450197303,2.2819,219.1,219.04,2.2825]
[1734450197499,2.2819,219.1,219.02,3.26]
[1734450198004,1.5063,219.15,219.04,13.19872896]
[1734450198204,14.70502896,219.15,219.02,3.26]
[1734450198506,14.70502896,219.15,219.04,2.2825]
[1734450198901,2.2819,219.11,219.05,2.2823]
[1734450199403,14.70502896,219.15,219.05,2.2823]
[1734450200408,14.70502896,219.15,219.02,3.26]
[1734450200704,1.5063,219.15,219.04,13.19872896]
[1734450200896,3.7878,219.15,219.1,2.2819]
[1734450201508,1.5063,219.15,219.12,2.2816]
[1734450201704,3.8584,219.17,219.12,2.2816]
[1734450202004,1.4956,219.18,219.08,3.26]
[1734450202604,1.4956,219.18,219.07,13.19872896]
[1734450202800,1.4956,219.18,219.09,3.26]
[1734450204007,1.4956,219.18,219.11,2.2817]
[1734450204707,1.4956,219.18,219.14,2.2815]
[1734450204907,2.281,219.19,219.14,2.2815]
[1734450205609,2.281,219.19,219.1,13.19872896]
[1734450205610,2.2811,219.18,219.13,2.2816]
[1734450206005,3.0466,219.21,219.0,5.38046306]
[1734450206006,13.19872896,219.16,219.0,5.38046306]
[1734450206206,13.19872896,219.13,219.0,5.38046306]
[1734450206603,2.2819,219.1,219.05,2.2824]
[1734450207102,13.19872896,219.13,219.03,3.26]
[1734450207307,13.19872896,219.16,219.03,3.26]
[1734450207808,2.2819,219.11,219.06,2.2822]
[1734450208806,2.2819,219.1,219.05,2.2824]
[1734450209006,2.2819,219.1,219.03,3.26]
[1734450209007,13.19872896,219.13,219.03,3.26]
[1734450209205,13.19872896,219.13,218.99,13.19872896]
[1734450209410,2.2822,219.07,219.01,2.2828]
[1734450210812,13.19872896,219.1,219.01,2.2828]
[1734450211306,2.2823,219.06,219.01,2.2828]
[1734450212403,13.19872896,219.1,218.98,3.26]
[1734450212611,3.055,219.09,218.98,3.26]
[1734450212804,3.055,219.09,218.99,2.283]
[1734450213004,3.055,219.09,218.98,3.26]
[1734450213510,2.2827,219.03,218.98,5.5431]
[1734450214015,2.2825,219.05,218.97,1.2817]
[1734450214313,3.055,219.09,218.97,1.2817]
[1734450214710,18.77445489,219.14,218.99,13.19872896]
[1734450215112,2.2822,219.08,219.02,2.2827]
[1734450215415,18.77445489,219.14,218.99,13.19872896]
[1734450215609,13.19872896,219.11,218.97,1.2817]
[1734450216218,2.2824,219.06,219.01,2.2828]
[1734450216422,13.19872896,219.11,218.97,1.2817]
[1734450216824,13.19872896,219.11,219.01,2.2827]
[1734450217423,2.2823,219.07,219.01,2.2827]
[1734450217819,13.19872896,219.13,218.99,13.19872896]
[1734450218125,2.282,219.09,218.99,13.19872896]
[1734450218825,2.282,219.09,219.02,2.2827]
[1734450219022,2.282,219.09,219.01,3.24]
[1734450219630,13.19872896,219.13,219.01,3.24]
[1734450219928,5.57572593,219.14,219.02,13.19872896]
[1734450220124,3.05,219.15,219.02,13.19872896]
[1734450220327,3.05,219.15,219.05,13.19872896]
[1734450220328,1.5829,219.15,219.05,13.19872896]
[1734450220527,1.5829,219.15,219.06,3.24]
[1734450220831,2.2816,219.14,219.09,2.2819]
[1734450221031,1.5829,219.15,219.06,3.24]
[1734450221529,15.48012896,219.16,219.06,3.24]
[1734450221725,13.19872896,219.19,219.06,3.24]
[1734450221933,2.2814,219.15,219.09,2.282]
[1734450222428,2.2815,219.14,219.09,2.282]
[1734450223132,13.19872896,219.16,219.06,3.24]
[1734450223328,2.2817,219.12,219.06,2.2823]
[1734450223527,13.19872896,219.16,219.06,2.2823]
[1734450223829,2.2819,219.1,219.05,2.2824]
[1734450224030,2.2819,219.1,219.04,3.24]
[1734450224729,2.2817,219.13,219.04,5.5225]
[1734450224930,13.19872896,219.16,219.04,5.5225]
[1734450225132,13.19872896,219.16,219.04,3.24]
[1734450225331,2.2818,219.12,219.06,2.2822]
[1734450225526,13.19872896,219.19,219.05,13.19872896]
[1734450225724,0.66666934,219.18,219.08,13.19872896]
[1734450225924,1.4862,219.2,219.08,13.19872896]
[1734450226128,2.2813,219.17,219.11,2.2818]
[1734450227027,2.2811,219.18,219.12,2.2816]
[1734450227532,1.4862,219.2,219.12,2.2816]
[1734450228132,1.4862,219.2,219.1,3.24]
[1734450228338,2.2812,219.17,219.11,2.2818]
[1734450229235,2.2814,219.16,219.1,2.2818]
[1734450229433,13.19872896,219.19,219.07,3.24]
[1734450230133,2.2812,219.17,219.11,2.2818]
[1734450230834,15.47972896,219.19,219.13,2.2816]
[1734450231035,13.19872896,219.19,219.13,2.2816]
[1734450231538,2.281,219.19,219.14,2.2815]
[1734450234430,240.52096172,219.32,219.17,13.19872896]
[1734450234634,0.66830273,219.29,219.17,13.19872896]
[1734450234829,2.28,219.29,219.17,13.19872896]
[1734450235029,85.64694107,219.3,219.17,13.19872896]
[1734450235729,98.84567003,219.3,219.17,13.19872896]